bitfinex/quotes_SOLUSD_20230102
["timestamp","ask_amount","ask_price","bid_price","bid_amount"]
[1672621884082,11.41574293,9.9029,9.8998,15.80730786]
[1672621884293,11.41574293,9.9029,9.8999,20.0]
[1672621884828,11.41574293,9.9029,9.9,15.80730786]
[1672621885229,11.41574293,9.9029,9.9001,20.0]
[1672621885667,11.41574293,9.9029,9.9002,15.80730786]
[1672621885878,11.41574293,9.9029,9.9003,20.0]
[1672621886281,11.41574293,9.9029,9.9004,15.80730786]
[1672621886487,11.41574293,9.9029,9.9005,30.0]
[1672621886722,11.41574293,9.9029,9.9006,20.0]
[1672621886915,11.41574293,9.9029,9.9007,30.0]
[1672621887116,11.41574293,9.9029,9.9007,45.80730786]
[1672621887340,11.41574293,9.9029,9.9008,20.0]
[1672621887656,11.41574293,9.9029,9.9009,15.80730786]
[1672621887867,11.41574293,9.9029,9.901,20.0]
[1672621888280,11.41574293,9.9029,9.9011,15.80730786]
[1672621888619,11.41574293,9.9029,9.9011,4.21141877]
[1672621888804,11.41574293,9.9029,9.9012,15.80730786]
[1672621889009,11.41574293,9.9029,9.9007,30.0]
[1672621889219,11.41574293,9.9029,9.9014,302.2]
[1672621889442,11.41574293,9.9029,9.9015,30.0]
[1672621889665,11.41574293,9.9029,9.9016,302.2]
[1672621889867,11.41574293,9.9029,9.9016,456.03788623]
[1672621890066,11.41574293,9.9029,9.9018,302.2]
[1672621890275,11.41574293,9.9029,9.9019,37.0]
[1672621890492,0.01245779,9.903,9.902,332.2]
[1672621890701,75.76,9.9167,9.9035,15.79485007]
[1672621891027,163.697,9.9199,9.91,11.6]
[1672621891239,75.7,9.9248,9.9101,138.2766]
[1672621891554,75.7,9.9248,9.9102,30.0]
[1672621891555,30.0,9.9247,9.9102,30.0]
[1672621891740,30.0,9.9245,9.9103,20.0]
[1672621891956,75.7,9.9244,9.9103,20.0]
[1672621892275,30.0,9.9243,9.9104,30.0]
[1672621892478,75.7,9.9242,9.9105,20.0]
[1672621892692,30.0,9.9241,9.9106,30.0]
[1672621892903,75.7,9.924,9.9107,20.0]
[1672621893113,30.0,9.9239,9.9108,30.0]
[1672621893437,75.71,9.9238,9.9109,20.0]
[1672621893647,30.0,9.9237,9.911,30.0]
[1672621893852,30.0,9.9237,9.9111,20.0]
[1672621893853,75.71,9.9236,9.9111,20.0]
[1672621894052,75.71,9.9236,9.9111,71.59734525]
[1672621894279,144.3833,9.9235,9.9112,81.59734525]
[1672621894598,30.0,9.9233,9.9114,30.0]
[1672621894800,75.71,9.9232,9.9115,20.0]
[1672621895209,30.0,9.9231,9.9116,30.0]
[1672621895427,144.3833,9.9231,9.9117,20.0]
[1672621895655,144.3833,9.9231,9.9118,30.0]
[1672621895852,144.3833,9.9231,9.9119,20.0]
[1672621896066,30.0,9.9229,9.912,30.0]
[1672621896274,30.0,9.9229,9.9122,30.0]
[1672621896809,30.0,9.9229,9.9123,20.0]
[1672621896810,190.0933,9.9228,9.9123,20.0]
[1672621897335,30.0,9.9227,9.9116,20.0]
[1672621897546,75.71,9.9226,9.9116,20.0]
[1672621897741,30.0,9.9225,9.9116,20.0]
[1672621897949,75.72,9.9224,9.9116,20.0]
[1672621898494,30.0,9.9222,9.9116,20.0]
[1672621898699,58.05,9.92,9.9102,118.2766]
[1672621898910,95.74,9.9199,9.9011,302.2]
[1672621899225,95.74,9.9199,9.8971,45.9068]
[1672621899226,30.0,9.9198,9.9062,15.80730786]
[1672621899425,95.74,9.9197,9.9062,15.80730786]
[1672621899633,30.0,9.9196,9.9062,15.80730786]
[1672621899846,75.74,9.9195,9.9062,15.80730786]
[1672621900048,30.0,9.9194,9.9062,15.80730786]
[1672621900259,30.0,9.9192,9.9062,15.80730786]
[1672621900485,75.74,9.9191,9.9062,15.80730786]
[1672621900799,30.0,9.919,9.9062,15.80730786]
[1672621901006,75.74,9.9189,9.9062,15.80730786]
[1672621901219,30.0,9.9188,9.9062,15.80730786]
[1672621901423,75.74,9.9187,9.9062,15.80730786]
[1672621901636,30.0,9.9186,9.9062,15.80730786]
[1672621901839,75.75,9.9185,9.9062,15.80730786]
[1672621902255,30.0,9.9184,9.9062,15.80730786]
[1672621902477,75.75,9.9183,9.9062,15.80730786]
[1672621902693,30.0,9.9182,9.9062,15.80730786]
[1672621902901,75.75,9.9181,9.9062,15.80730786]
[1672621903101,30.0,9.918,9.9062,15.80730786]
[1672621903314,75.75,9.9179,9.9062,15.80730786]
[1672621903527,30.0,9.9178,9.9062,15.80730786]
[1672621903747,30.0,9.9176,9.9062,15.80730786]
[1672621903940,75.75,9.9175,9.9062,15.80730786]
[1672621904159,30.0,9.9174,9.9062,15.80730786]
[1672621904479,30.0,9.9172,9.9062,15.80730786]
[1672621904678,75.76,9.9171,9.9062,15.80730786]
[1672621905002,30.0,9.917,9.9062,15.80730786]
[1672621905223,30.0,9.9168,9.9062,15.80730786]
[1672621905425,75.76,9.9167,9.9062,15.80730786]
[1672621905621,30.0,9.9166,9.9062,15.80730786]
[1672621905829,75.76,9.9165,9.9062,15.80730786]
[1672621906048,30.0,9.9164,9.9062,15.80730786]
[1672621906374,30.0,9.9162,9.9062,15.80730786]
[1672621906567,30.0,9.916,9.9062,15.80730786]
[1672621906782,30.0,9.9158,9.9062,15.80730786]
[1672621907000,75.77,9.9157,9.9062,15.80730786]
[1672621907217,30.0,9.9158,9.9062,15.80730786]
[1672621907408,30.0,9.9156,9.9062,15.80730786]
[1672621907620,75.77,9.9155,9.9062,15.80730786]
[1672621907825,30.0,9.9154,9.9062,15.80730786]
[1672621908266,50.0887398,9.9154,9.9062,15.80730786]
[1672621910655,20.0887398,9.9154,9.9062,15.80730786]
[1672621910879,20.0887398,9.9154,9.9064,302.2]
[1672621911080,20.0887398,9.9154,9.9067,30.0]
[1672621911296,20.0887398,9.9154,9.9068,20.0]
[1672621911506,20.0887398,9.9154,9.9069,302.2]
[1672621911713,20.0887398,9.9154,9.9071,30.0]
[1672621911931,20.0887398,9.9154,9.9072,20.0]
[1672621912131,20.0887398,9.9154,9.9079,30.0]
[1672621912357,20.0887398,9.9154,9.908,20.0]
[1672621912571,20.0887398,9.9154,9.9081,30.0]
[1672621912881,20.0887398,9.9154,9.9083,30.0]
[1672621913099,20.0887398,9.9154,9.9086,30.0]
[1672621913285,20.0887398,9.9154,9.9087,20.0]
[1672621913512,20.0887398,9.9154,9.9088,30.0]
[1672621913721,20.0887398,9.9154,9.9089,20.0]
[1672621914045,20.0887398,9.9154,9.9091,30.0]
[1672621914252,20.0887398,9.9154,9.9092,50.0]
[1672621914467,20.0887398,9.9154,9.9092,65.80730786]
[1672621914680,20.0887398,9.9154,9.9094,30.0]
[1672621914882,20.0887398,9.9154,9.9095,20.0]
[1672621915096,20.0887398,9.9154,9.9096,60.0]
[1672621915318,20.0887398,9.9154,9.9098,30.0]
[1672621915515,20.0887398,9.9154,9.9099,20.0]
[1672621915726,20.0887398,9.9154,9.91,30.0]
[1672621915941,20.0887398,9.9154,9.9101,20.0]
[1672621916151,20.0887398,9.9154,9.9102,30.0]
[1672621916364,20.0887398,9.9154,9.9103,20.0]
[1672621916565,20.0887398,9.9154,9.9104,30.0]
[1672621916779,20.0887398,9.9154,9.9105,20.0]
[1672621916993,20.0887398,9.9154,9.9105,35.80730786]
[1672621917213,20.0887398,9.9154,9.9106,45.80730786]
[1672621917413,20.0887398,9.9154,9.9107,20.0]
[1672621917624,20.0887398,9.9154,9.9107,35.80730786]
[1672621917825,20.0887398,9.9154,9.9108,45.80730786]
[1672621918037,20.0887398,9.9154,9.9109,20.0]
[1672621918242,20.0887398,9.9154,9.911,30.0]
[1672621918468,20.0887398,9.9154,9.911,45.80730786]
[1672621918671,20.0887398,9.9154,9.9112,30.0]
[1672621918888,20.0887398,9.9154,9.9113,20.0]
[1672621919093,20.0887398,9.9154,9.9114,30.0]
[1672621919291,20.0887398,9.9154,9.9115,20.0]
[1672621919502,143.558,9.9184,9.9115,15.80730786]
[1672621919729,113.558,9.9184,9.9115,15.80730786]
[1672621919943,113.558,9.9184,9.9116,15.80730786]
[1672621921291,113.558,9.9184,9.9117,20.0]
[1672621921725,113.558,9.9184,9.9118,15.80730786]
[1672621922339,113.558,9.9184,9.9119,20.0]
[1672621922666,113.558,9.9184,9.912,15.80730786]
[1672621922882,113.558,9.9184,9.9121,322.2]
[1672621923092,113.558,9.9184,9.9122,30.0]
[1672621923299,113.558,9.9184,9.9123,20.0]
[1672621923515,113.558,9.9184,9.9123,35.80730786]
[1672621923722,113.558,9.9184,9.9124,348.00730786]
[1672621923913,113.558,9.9184,9.9124,466.37224191]
[1672621924126,113.558,9.9184,9.9126,302.2]
[1672621924336,113.558,9.9184,9.9127,50.0]
[1672621924656,113.558,9.9184,9.9129,30.0]
[1672621924991,113.558,9.9184,9.9131,332.2]
[1672621925303,113.558,9.9184,9.9132,35.80730786]
[1672621925506,113.558,9.9184,9.9133,30.0]
[1672621925718,113.558,9.9184,9.9133,45.80730786]
[1672621925933,113.558,9.9184,9.9134,35.80730786]
[1672621926123,46.1977,9.9191,9.9135,30.0]
[1672621926454,46.1977,9.9191,9.9136,35.80730786]
[1672621926661,46.1977,9.9191,9.9137,30.0]
[1672621926859,46.1977,9.9191,9.9138,20.0]
[1672621927183,46.1977,9.9191,9.9139,30.0]
[1672621927402,46.1977,9.9191,9.914,20.0]
[1672621927622,46.1977,9.9191,9.9141,30.0]
[1672621927815,46.1977,9.9191,9.9142,20.0]
[1672621929398,46.1977,9.9191,9.912,20.0]
[1672621929587,46.5024,9.919,9.9108,30.0]
[1672621929793,30.0,9.9188,9.9109,20.0]
[1672621930029,22.833,9.9187,9.9109,20.0]
[1672621930352,30.0,9.9186,9.9109,20.0]
[1672621930546,52.833,9.9186,9.9109,20.0]
[1672621930965,22.833,9.9186,9.911,30.0]
[1672621931165,22.833,9.9186,9.9111,20.0]
[1672621931376,22.833,9.9186,9.9112,30.0]
[1672621931710,22.833,9.9186,9.9112,96.7675888]
[1672621932020,22.833,9.9186,9.9113,86.7675888]
[1672621932237,22.833,9.9186,9.9111,20.0]
[1672621932238,30.0,9.9185,9.9111,20.0]
[1672621932458,75.75,9.9184,9.9111,20.0]
[1672621932646,30.0,9.9183,9.9111,20.0]
[1672621932866,30.0,9.9181,9.9111,20.0]
[1672621933069,30.0,9.9181,9.9098,20.0]
[1672621933287,30.0,9.9179,9.9098,20.0]
[1672621933603,30.0,9.9179,9.9099,15.80730786]
[1672621933809,46.3568,9.9178,9.91,20.0]
[1672621934022,30.0,9.9177,9.9098,20.0]
[1672621934550,30.0,9.9175,9.9089,20.0]
[1672621934769,30.0,9.9175,9.9088,20.0]
[1672621935503,30.0,9.9173,9.9088,20.0]
[1672621936134,75.76,9.9172,9.9088,20.0]
[1672621936535,30.0,9.9171,9.9088,20.0]
[1672621938747,30.0,9.9171,9.9089,15.80730786]
[1672621939179,30.0,9.9171,9.909,20.0]
[1672621940742,30.0,9.9171,9.9091,15.80730786]
[1672621941163,30.0,9.9171,9.9092,20.0]
[1672621941590,30.0,9.9171,9.9093,15.80730786]
[1672621941889,30.0,9.9171,9.9094,20.0]
[1672621942325,30.0,9.9171,9.9095,15.80730786]
[1672621942963,30.0,9.9171,9.9096,20.0]
[1672621943374,30.0,9.9171,9.9097,15.80730786]
[1672621943885,30.0,9.9171,9.9098,20.0]
[1672621944306,30.0,9.9171,9.9099,15.80730786]
[1672621944723,30.0,9.9171,9.91,20.0]
[1672621945567,30.0,9.9171,9.91,35.80730786]
[1672621948738,30.0,9.9171,9.91,20.0]
[1672621948947,30.0,9.9171,9.9036,75.43309157]
[1672621948948,75.76,9.917,9.897,75.43309157]
[1672621949135,266.1808,9.917,9.9009,30.0]
[1672621949347,30.0,9.9169,9.901,20.0]
[1672621949686,30.0,9.9167,9.9011,30.0]
[1672621949997,30.0,9.9165,9.9013,30.0]
[1672621950212,30.0,9.9163,9.9018,30.0]
[1672621950410,75.76,9.9162,9.9018,30.0]
[1672621950624,30.0,9.9161,9.9019,87.40465311]
[1672621950821,30.0,9.9159,9.902,30.0]
[1672621951027,75.77,9.9158,9.9021,20.0]
[1672621951246,30.0,9.9157,9.9023,30.0]
[1672621951451,75.77,9.9156,9.9024,20.0]
[1672621951766,30.0,9.9155,9.9025,30.0]
[1672621951970,30.0,9.9153,9.9025,97.40465311]
[1672621952199,75.77,9.9152,9.9026,35.80730786]
[1672621952409,30.0,9.9151,9.9027,30.0]
[1672621952621,30.0,9.9149,9.9027,45.80730786]
[1672621952818,75.77,9.9148,9.9028,35.80730786]
[1672621953030,75.77,9.9148,9.9028,20.0]
[1672621953361,75.77,9.9148,9.9027,20.0]
[1672621953563,183.0056,9.9147,9.9004,51.59734525]
[1672621953768,75.78,9.9146,9.9007,15.80730786]
[1672621953978,105.78,9.9146,9.9007,15.80730786]
[1672621954298,30.0,9.9145,9.9008,20.0]
[1672621954511,75.78,9.9144,9.9008,20.0]
[1672621954925,30.0,9.9143,9.9008,20.0]
[1672621955140,75.78,9.9142,9.9005,20.0]
[1672621955551,30.0,9.9141,9.9005,20.0]
[1672621955769,30.0,9.9139,9.9005,20.0]
[1672621955973,75.78,9.9138,9.9005,20.0]
[1672621956182,30.0,9.9137,9.9005,20.0]
[1672621956393,75.78,9.9136,9.9005,20.0]
[1672621956616,30.0,9.9135,9.9005,20.0]
[1672621956833,75.78,9.9134,9.9005,20.0]
[1672621957030,30.0,9.9133,9.9005,20.0]
[1672621957244,75.79,9.9132,9.9005,20.0]
[1672621957444,30.0,9.9131,9.9005,20.0]
[1672621957662,30.0,9.9129,9.9005,20.0]
[1672621957870,75.79,9.9128,9.9005,20.0]
[1672621958302,158.8736,9.9127,9.9006,51.59734525]
[1672621958517,30.0,9.9125,9.9008,30.0]
[1672621958716,75.79,9.9124,9.9009,20.0]
[1672621958939,234.6636,9.9124,9.9009,35.80730786]
[1672621959128,30.0,9.9123,9.9011,30.0]
[1672621959337,75.79,9.9122,9.9012,20.0]
[1672621959549,30.0,9.9121,9.9013,30.0]
[1672621959879,30.0,9.9121,9.9015,30.0]
[1672621960073,158.8736,9.912,9.9015,30.0]
[1672621960285,158.8736,9.912,9.9016,87.40465311]
[1672621960501,30.0,9.9119,9.9017,30.0]
[1672621960710,188.8736,9.9119,9.9017,81.59734525]
[1672621960931,188.8736,9.9119,9.9019,30.0]
[1672621961131,188.8736,9.9119,9.902,20.0]
[1672621961459,164.4779,9.9118,9.9021,30.0]
[1672621961646,30.0,9.9117,9.9022,20.0]
[1672621961859,164.4779,9.9117,9.9022,71.59734525]
[1672621962070,164.4779,9.9117,9.9023,81.59734525]
[1672621962401,164.4779,9.9117,9.9025,30.0]
[1672621962620,164.4779,9.9116,9.9027,30.0]
[1672621962928,49.0592,9.9115,9.9029,30.0]
[1672621963326,115.4187,9.9116,9.9029,30.0]
[1672621963327,49.0592,9.9114,9.9031,30.0]
[1672621963765,49.0592,9.9114,9.9033,30.0]
[1672621963981,49.0592,9.9113,9.9033,30.0]
[1672621964194,49.0592,9.9113,9.9034,15.80730786]
[1672621964403,49.0592,9.9113,9.9035,20.0]
[1672621964595,24.4948,9.9112,9.9036,30.0]
[1672621964820,24.4948,9.9112,9.9038,30.0]
[1672621965223,24.4948,9.9111,9.9038,30.0]
[1672621965437,24.4948,9.9111,9.904,30.0]
[1672621965648,24.4948,9.9111,9.9042,30.0]
[1672621965875,24.4948,9.9111,9.9043,20.0]
[1672621966086,24.4948,9.9111,9.9044,30.0]
[1672621966293,24.4948,9.9111,9.9045,20.0]
[1672621966509,24.4948,9.9111,9.9046,30.0]
[1672621970071,24.4948,9.9111,9.9046,45.80730786]
[1672621973134,24.4948,9.9111,9.9046,97.40465311]
[1672621976906,24.4948,9.9111,9.9046,51.59734525]
[1672621977235,30.0,9.911,9.9046,51.59734525]
[1672621977671,24.4948,9.9111,9.9046,51.59734525]
[1672621978590,30.0,9.911,9.9046,51.59734525]
[1672621979442,24.4948,9.9111,9.9046,51.59734525]
[1672621979666,24.4948,9.9111,9.9045,20.0]
[1672621979667,30.0,9.9099,9.9045,20.0]
[1672621979869,75.81,9.9098,9.8993,132.1874]
[1672621980068,235.8579,9.9098,9.8993,132.1874]
[1672621980273,30.0,9.9097,9.8993,132.1874]
[1672621980497,30.0,9.9097,9.8994,15.80730786]
[1672621980698,30.0,9.9095,9.8994,15.80730786]
[1672621981019,30.0,9.9095,9.8995,20.0]
[1672621981236,166.1792,9.9094,9.8995,20.0]
[1672621981548,30.0,9.9093,9.8996,15.80730786]
[1672621981763,78.5204,9.9093,9.8997,20.0]
[1672621982158,78.5204,9.9093,9.8998,15.80730786]
[1672621982375,30.0,9.9091,9.8999,20.0]
[1672621982795,30.0,9.9091,9.9,15.80730786]
[1672621983019,30.0,9.9089,9.9,15.80730786]
[1672621983228,30.0,9.9089,9.9001,20.0]
[1672621983656,30.0,9.9087,9.9002,15.80730786]
[1672621983864,30.0,9.9087,9.9003,20.0]
[1672621984288,30.0,9.9085,9.9004,15.80730786]
[1672621984688,30.0,9.9085,9.9003,20.0]
[1672621984898,30.0,9.9083,9.8994,20.0]
[1672621985228,30.0,9.9083,9.9003,15.80730786]
[1672621985642,24.2345,9.9082,9.9004,20.0]
[1672621986049,24.2345,9.9082,9.9005,15.80730786]
[1672621986275,24.2345,9.9082,9.9006,20.0]
[1672621986497,30.0,9.9081,9.9006,20.0]
[1672621986697,30.0,9.9081,9.9007,15.80730786]
[1672621986911,30.0,9.9081,9.9008,20.0]
[1672621989636,75.83,9.908,9.8994,20.0]
[1672621989837,30.0,9.9081,9.8994,20.0]
[1672621990483,30.0,9.9081,9.8995,15.80730786]
[1672621990904,30.0,9.9081,9.8996,20.0]
[1672621991310,30.0,9.9081,9.8994,20.0]
[1672621991734,30.0,9.9081,9.9003,75.43309157]
[1672621991949,30.0,9.9081,9.897,40.55420786]
[1672621991950,30.0,9.9081,9.8943,75.43309157]
[1672621992169,30.0,9.9081,9.892,149.7139265]
[1672621992170,11.59,9.9,9.8911,75.43309157]
[1672621992381,75.89,9.8999,9.8909,75.43309157]
[1672621992573,75.89,9.8999,9.891,75.43309157]
[1672621992787,30.0,9.8998,9.8902,108.2095]
[1672621993014,75.89,9.8997,9.8902,108.2095]
[1672621993205,30.0,9.8996,9.8902,108.2095]
[1672621993420,75.89,9.8995,9.8902,108.2095]
[1672621993838,30.0,9.8994,9.8902,108.2095]
[1672621994052,75.89,9.8993,9.8902,108.2095]
[1672621994269,30.0,9.8992,9.8902,108.2095]
[1672621994585,30.0,9.899,9.8902,108.2095]
[1672621994804,75.9,9.8989,9.8879,15.80730786]
[1672621995114,30.0,9.8988,9.8801,75.43309157]
[1672621995308,75.9,9.8987,9.8828,15.80730786]
[1672621995520,474.33805094,9.8987,9.8828,15.80730786]
[1672621995725,125.67308252,9.8986,9.8828,15.80730786]
[1672621995937,75.9,9.8985,9.8828,15.80730786]
[1672621996160,30.0,9.8984,9.8828,15.80730786]
[1672621996372,75.9,9.8983,9.8829,20.0]
[1672621996572,171.57308252,9.8983,9.8829,20.0]
[1672621996775,30.0,9.8981,9.8829,20.0]
[1672621996991,75.9,9.898,9.8829,20.0]
[1672621997214,30.0,9.8979,9.883,15.80730786]
[1672621997422,75.9,9.8978,9.883,15.80730786]
[1672621997630,30.0,9.8977,9.8831,20.0]
[1672621997835,75.91,9.8976,9.8831,20.0]
[1672621998048,30.0,9.8975,9.8831,35.80730786]
[1672621998255,75.91,9.8974,9.8831,35.80730786]
[1672621998467,30.0,9.8973,9.8831,35.80730786]
[1672621998682,75.91,9.8972,9.8831,35.80730786]
[1672621999094,30.0,9.8971,9.8831,35.80730786]
[1672621999309,75.91,9.897,9.8831,35.80730786]
[1672621999515,30.0,9.8969,9.8831,35.80730786]
[1672621999730,30.0,9.8967,9.8831,35.80730786]
[1672621999952,75.91,9.8966,9.8831,35.80730786]
[1672622000145,30.0,9.8965,9.8831,35.80730786]
[1672622000355,75.92,9.8964,9.8831,35.80730786]
[1672622000574,30.0,9.8963,9.8831,35.80730786]
[1672622000791,30.0,9.8961,9.8831,35.80730786]
[1672622001002,30.0,9.8961,9.8831,20.0]
[1672622001003,75.92,9.896,9.8831,20.0]
[1672622001199,75.92,9.896,9.8805,20.0]
[1672622001200,30.0,9.8959,9.8805,20.0]
[1672622001408,75.92,9.8958,9.882,15.80730786]
[1672622001642,30.0,9.8957,9.8821,20.0]
[1672622001837,75.92,9.8956,9.8802,30.0]
[1672622002052,30.0,9.8955,9.8803,20.0]
[1672622002264,30.0,9.8953,9.8822,15.80730786]
[1672622002471,75.92,9.8952,9.8823,20.0]
[1672622002691,30.0,9.8951,9.8823,20.0]
[1672622003006,75.93,9.895,9.8824,15.80730786]
[1672622003202,30.0,9.8949,9.8824,15.80730786]
[1672622003413,30.0,9.8947,9.8825,20.0]
[1672622003626,30.0,9.8945,9.8825,20.0]
[1672622003942,30.0,9.8943,9.8825,20.0]
[1672622004143,75.93,9.8942,9.8805,20.0]
[1672622004472,30.0,9.8941,9.8805,35.80730786]
[1672622004684,75.93,9.894,9.8805,35.80730786]
[1672622004891,189.1354,9.894,9.8805,35.80730786]
[1672622005214,30.0,9.8939,9.8806,30.0]
[1672622005400,195.4312,9.8939,9.8807,20.0]
[1672622005608,165.4312,9.8939,9.8808,30.0]
[1672622005824,165.4312,9.8939,9.8809,20.0]
[1672622005825,30.0,9.8938,9.8809,20.0]
[1672622006034,194.1398,9.8938,9.881,30.0]
[1672622006259,194.1398,9.8938,9.8811,20.0]
[1672622006468,194.1398,9.8938,9.8812,30.0]
[1672622006670,30.0,9.8936,9.8813,20.0]
[1672622006881,30.0,9.8936,9.8814,30.0]
[1672622007092,30.0,9.8936,9.8814,45.80730786]
[1672622007324,30.0,9.8934,9.8815,35.80730786]
[1672622007614,164.1398,9.8935,9.8816,45.80730786]
[1672622007825,164.1398,9.8933,9.8817,20.0]
[1672622008055,30.0,9.8932,9.8818,30.0]
[1672622008367,164.1398,9.8933,9.8819,20.0]
[1672622008578,164.1398,9.8931,9.882,30.0]
[1672622008775,164.1398,9.8931,9.8821,20.0]
[1672622008992,164.1398,9.8931,9.8822,30.0]
[1672622009413,165.73,9.893,9.8823,20.0]
[1672622009624,165.73,9.8929,9.8824,30.0]
[1672622009834,165.73,9.8928,9.8825,20.0]
[1672622010055,23.7042,9.894,9.8825,20.0]
[1672622010056,30.0,9.8926,9.8825,20.0]
[1672622010268,165.73,9.8925,9.8825,20.0]
[1672622010574,241.68,9.8925,9.8825,20.0]
[1672622010791,30.0,9.8923,9.8809,20.0]
[1672622011611,30.0,9.8921,9.8809,20.0]
[1672622012256,162.8335,9.892,9.8809,20.0]
[1672622012470,30.0,9.8919,9.8809,20.0]
[1672622012667,30.0,9.8919,9.881,30.0]
[1672622012877,30.0,9.8917,9.8811,20.0]
[1672622013083,30.0,9.8917,9.8812,30.0]
[1672622013308,30.0,9.8917,9.8813,20.0]
[1672622013633,162.8335,9.8916,9.8814,30.0]
[1672622013847,162.8335,9.8916,9.8815,20.0]
[1672622014029,162.8335,9.8916,9.8816,30.0]
[1672622014366,162.8335,9.8916,9.8818,30.0]
[1672622014557,162.8335,9.8915,9.882,30.0]
[1672622014904,162.8335,9.8914,9.8822,30.0]
[1672622015086,46.6344,9.8913,9.8822,30.0]
[1672622015297,46.6344,9.8913,9.8823,35.80730786]
[1672622015527,30.0,9.8912,9.8823,35.80730786]
[1672622015732,79.2258,9.8912,9.8824,15.80730786]
[1672622015932,79.2258,9.8912,9.8825,20.0]
[1672622016365,49.2258,9.8911,9.8823,20.0]
[1672622016564,49.2258,9.8911,9.8809,20.0]
[1672622016777,30.0,9.8909,9.8809,20.0]
[1672622017090,30.0,9.8909,9.881,30.0]
[1672622017311,160.9773,9.8908,9.8811,20.0]
[1672622017507,30.0,9.8907,9.8811,20.0]
[1672622017931,30.0,9.8905,9.8812,30.0]
[1672622018154,30.0,9.8905,9.8813,20.0]
[1672622018660,47.6655,9.8904,9.8813,20.0]
[1672622018870,30.0,9.8903,9.8814,30.0]
[1672622019082,30.0,9.8903,9.8815,20.0]
[1672622019291,47.6655,9.8902,9.8815,20.0]
[1672622019523,30.0,9.8901,9.8815,20.0]
[1672622019835,30.0,9.8901,9.8816,30.0]
[1672622020153,30.0,9.8899,9.8817,35.80730786]
[1672622020357,30.0,9.8899,9.8818,20.0]
[1672622020567,47.6655,9.8898,9.8818,35.80730786]
[1672622020785,30.0,9.8897,9.8819,15.80730786]
[1672622020999,30.0,9.8897,9.882,20.0]
[1672622021303,23.3821,9.8896,9.8821,15.80730786]
[1672622021515,30.0,9.8895,9.8821,15.80730786]
[1672622021831,53.444,9.8895,9.8822,20.0]
[1672622022045,23.444,9.8895,9.8822,20.0]
[1672622022236,23.444,9.8895,9.8823,15.80730786]
[1672622022657,23.444,9.8895,9.8824,20.0]
[1672622023184,23.444,9.8895,9.8825,15.80730786]
[1672622023386,23.444,9.8895,9.8826,20.0]
[1672622023617,23.444,9.8895,9.8827,30.0]
[1672622023823,23.444,9.8895,9.8829,30.0]
[1672622024225,23.444,9.8895,9.8831,30.0]
[1672622024646,23.444,9.8895,9.8832,15.80730786]
[1672622024862,23.444,9.8895,9.8834,30.0]
[1672622025289,23.444,9.8895,9.8836,30.0]
[1672622025704,23.444,9.8895,9.8838,30.0]
[1672622025915,23.444,9.8895,9.8839,20.0]
[1672622026168,23.444,9.8895,9.8839,35.80730786]
[1672622026369,23.444,9.8895,9.884,15.80730786]
[1672622026687,23.444,9.8895,9.8841,50.0]
[1672622027085,23.444,9.8895,9.8842,15.80730786]
[1672622027311,23.444,9.8895,9.8843,20.0]
[1672622027519,23.444,9.8895,9.8844,30.0]
[1672622027726,23.444,9.8895,9.8845,20.0]
[1672622027946,23.444,9.8895,9.8846,30.0]
[1672622028152,23.444,9.8895,9.8846,45.80730786]
[1672622028341,23.444,9.8895,9.8847,15.80730786]
[1672622028779,75.89,9.8999,9.8848,20.0]
[1672622028975,162.5406,9.8999,9.89,11.52]
[1672622029190,238.4306,9.8998,9.8901,20.0]
[1672622029607,162.5406,9.8998,9.8901,35.80730786]
[1672622029812,30.0,9.8996,9.8902,30.0]
[1672622030031,30.0,9.8996,9.8903,20.0]
[1672622030242,30.0,9.8996,9.8903,35.80730786]
[1672622030460,47.0495,9.8995,9.8903,20.0]
[1672622030668,30.0,9.8994,9.8904,15.80730786]
[1672622030889,30.0,9.8994,9.8905,20.0]
[1672622031093,46.1401,9.8993,9.8903,20.0]
[1672622031316,30.0,9.8992,9.8903,20.0]
[1672622031494,30.0,9.8992,9.8867,20.0]
[1672622031711,46.1401,9.8991,9.8873,75.43309157]
[1672622032031,30.0,9.899,9.8875,30.0]
[1672622032243,76.1401,9.899,9.8876,20.0]
[1672622032452,76.1401,9.899,9.8877,30.0]
[1672622032652,76.1401,9.899,9.8878,20.0]
[1672622032862,30.0,9.8988,9.8878,20.0]
[1672622033392,30.0,9.8988,9.8879,30.0]